fUST/lending_fUST_20251217
["ID","MTS","AMOUNT","RATE_DAILY","PERIOD"]
[398813240,1765914632159,-581.31703703,9.706e-05,2]
[398813241,1765914632168,-418.68296297,9.706e-05,2]
[398813251,1765914638160,-1156.52887415,9.706e-05,2]
[398813252,1765914638170,-291.32989611,0.00010027,2]
[398813253,1765914638179,-2398.4119403,0.00010242,2]
[398813254,1765914638188,-154.127,0.00010348,2]
[398813255,1765914638197,-800.0,0.00010379,2]
[398813256,1765914638207,-300.0,0.00010398,2]
[398813257,1765914638217,-800.0,0.00010399,2]
[398813258,1765914638226,-800.0,0.00010404,2]
[398813259,1765914638235,-537.65043338,0.00010418,2]
[398813260,1765914638245,-800.0,0.00010441,2]
[398813261,1765914638255,-800.0,0.00010472,2]
[398813262,1765914638265,-800.0,0.00010485,2]
[398813263,1765914638274,-800.0,0.0001049,2]
[398813264,1765914638284,-800.0,0.00010502,2]
[398813265,1765914638294,-160124.85520424,0.0001052,2]
[398813266,1765914638306,-4023.56816462,0.0001052,2]
[398813451,1765914640265,-1803.60044427,0.0001052,2]
[398813458,1765914640319,-18165.2917058,0.0001052,2]
[398813460,1765914640331,-1428.66,0.0001052,2]
[398813466,1765914640374,-721.77980252,0.0001052,2]
[398813728,1765914643347,-911.53219827,0.0001052,2]
[398814023,1765914646394,-46319.77281872,0.0001052,2]
[398814027,1765914646405,-17522.91043492,0.0001052,2]
[398817842,1765914819242,10000.0,9.648e-05,2]
[398817844,1765914839008,0.01,6.98e-05,2]
[398817845,1765914839034,149.99,6.98e-05,2]
[398817846,1765914839456,150.0,7.313e-05,2]
[398817847,1765914840326,150.0,7.645e-05,2]
[398817848,1765914840750,150.0,7.978e-05,2]
[398817849,1765914841147,150.0,8.31e-05,2]
[398817876,1765915295501,9308.43586748,0.00019,120]
[398817888,1765915636225,5000.0,9.648e-05,2]
[398817889,1765915659548,4550.01,9.648e-05,2]
[398817890,1765915659571,449.99,9.648e-05,2]
[398817892,1765915682449,5000.0,9.648e-05,2]
[398817893,1765915705402,4550.02,9.648e-05,2]
[398817894,1765915705425,449.98,9.648e-05,2]
[398817895,1765915728530,5000.0,9.648e-05,2]
[398817896,1765915740720,150.0,6.959e-05,2]
[398817897,1765915741115,150.0,7.291e-05,2]
[398817899,1765915742005,150.0,7.622e-05,2]
[398817901,1765915742045,150.0,7.953e-05,2]
[398817902,1765915742698,184.89,8.285e-05,2]
[398817903,1765915742761,221.87,8.616e-05,2]
[398817904,1765915743193,258.85,8.948e-05,2]
[398817905,1765915743614,295.83,9.279e-05,2]
[398817906,1765915744008,332.8,9.61e-05,2]
[398817907,1765915752002,2655.79,9.648e-05,2]
[398817908,1765915752025,2344.21,9.648e-05,2]
[398817910,1765915775745,5000.0,9.648e-05,2]
[398817921,1765915793147,267.94983324,9.493e-05,2]
[398817922,1765915799053,2387.85016676,9.648e-05,2]
[398817923,1765915799079,2612.14983324,9.648e-05,2]
[398817927,1765915812856,150.0,6.871e-05,2]
[398817928,1765915813239,150.0,7.198e-05,2]
[398817929,1765915813640,150.0,7.525e-05,2]
[398817930,1765915814039,150.0,7.852e-05,2]
[398817931,1765915815289,150.0,8.179e-05,2]
[398817933,1765915816167,150.0,8.506e-05,2]
[398817934,1765915816232,150.0,8.834e-05,2]
[398817935,1765915816539,164.36,9.161e-05,2]
[398817936,1765915816963,184.9,9.488e-05,2]
[398817938,1765915822467,5000.0,9.648e-05,2]
[398817939,1765915832272,-300.0,9.705e-05,2]
[398817940,1765915832282,-72.5837831,9.705e-05,2]
[398817941,1765915832293,-90.54918385,9.705e-05,2]
[398817942,1765915832303,-432.25,9.705e-05,2]
[398817943,1765915832312,-500.0,9.705e-05,2]
[398817944,1765915832321,-500.0,9.705e-05,2]
[398817945,1765915832329,-348.18842051,9.705e-05,2]
[398817946,1765915832338,-500.0,9.705e-05,2]
[398817947,1765915832347,-500.0,9.705e-05,2]
[398817948,1765915832356,-716.4118402,9.706e-05,2]
[398817949,1765915832365,-1289.54131236,9.706e-05,2]
[398817950,1765915832374,-2292.51788864,9.706e-05,2]
[398817951,1765915832382,-3582.05920099,9.706e-05,2]
[398817952,1765915832391,-571.95880549,9.706e-05,2]
[398817953,1765915832400,-1029.52584989,9.706e-05,2]
[398817954,1765915832409,-1830.26817758,9.706e-05,2]
[398817955,1765915832418,-205.45,9.815e-05,2]
[398817956,1765915832426,-300.0,9.899e-05,2]
[398817957,1765915832435,-300.0,9.899e-05,2]
[398817958,1765915832444,-300.0,9.899e-05,2]
[398817959,1765915832453,-300.0,9.899e-05,2]
[398817960,1765915832462,-300.0,9.899e-05,2]
[398817961,1765915832471,-300.0,9.899e-05,2]
[398817962,1765915832479,-300.0,9.899e-05,2]
[398817963,1765915832488,-300.0,9.899e-05,2]
[398817964,1765915832497,-300.0,9.899e-05,2]
[398817965,1765915832505,-300.0,9.899e-05,2]
[398817966,1765915832515,-300.0,9.899e-05,2]
[398817967,1765915832524,-300.0,9.899e-05,2]
[398817968,1765915832532,-300.0,9.899e-05,2]
[398817969,1765915832541,-300.0,9.899e-05,2]
[398817970,1765915832550,-300.0,9.899e-05,2]
[398817971,1765915832558,-289.91568186,0.00010062,2]
[398817972,1765915832567,-367.56713385,0.00010096,2]
[398817973,1765915832608,-500.0,9.705e-05,2]
[398817974,1765915832617,-67.45196851,0.00010096,2]
[398817975,1765915832628,-164.98089764,0.00010096,2]
[398817976,1765915832637,-205.16,0.00010216,2]
[398817977,1765915832646,-500.0,0.00010393,2]
[398817978,1765915832655,-5.75814822,0.00010393,2]
[398817979,1765915832666,-494.24185178,0.00010393,2]
[398817980,1765915832675,-226.77402872,0.00010393,2]
[398817981,1765915832684,-496.47127164,0.00010414,2]
[398817982,1765915832692,-646.98920898,0.00010414,2]
[398818026,1765915838612,-500.0,9.705e-05,2]
[398818028,1765915838622,-624.46455866,9.705e-05,2]
[398818031,1765915838632,-500.0,9.705e-05,2]
[398818032,1765915838641,-500.0,9.705e-05,2]
[398818034,1765915838651,-1751.42273132,0.00010414,2]
[398818036,1765915838660,-234.22404119,0.00010419,2]
[398818039,1765915838670,-172.689,0.00010419,2]
[398818041,1765915838680,-189.319,0.00010419,2]
[398818043,1765915838690,-19620.31820663,0.0001042,2]
[398818045,1765915838702,-920.0098551,0.0001042,2]
[398818047,1765915838714,-625.58105007,0.0001042,2]
[398818247,1765915840658,-671.77936835,0.0001042,2]
[398818249,1765915840670,-1207.93654762,0.0001042,2]
[398818254,1765915840712,-30592.90438003,0.0001042,2]
[398818257,1765915840723,-15724.67790484,0.0001042,2]
[398818263,1765915840770,-5618.83711693,0.0001042,2]
[398818519,1765915843515,-330.0,0.0001042,2]
[398818828,1765915846564,-5000.0,0.00010316,2]
[398818830,1765915846574,-16619.10062939,0.0001042,2]
[398818836,1765915846619,-823.72127738,0.0001042,2]
[398818839,1765915846630,-15979.77369795,0.0001042,2]
[398820547,1765915881775,150.0,7.605e-05,2]
[398820548,1765915882190,150.0,7.967e-05,2]
[398820549,1765915882598,150.0,8.329e-05,2]
[398820550,1765915883010,150.0,8.691e-05,2]
[398820551,1765915883408,150.0,9.053e-05,2]
[398820591,1765916001346,-827.12341612,0.00015,30]
[398820592,1765916001400,-161.91933479,0.00021793,56]
[398820593,1765916001539,-161.91933479,0.00024586,110]
[398820594,1765916001588,-1000.0,0.00027565,30]
[398820595,1765916001622,-1000.0,0.00027565,30]
[398820596,1765916001655,-1000.0,0.00027565,30]
[398820597,1765916001692,-715.0,0.00027565,30]
[398820598,1765916001726,-200.0,0.0002874,30]
[398820599,1765916001758,-443.414265,0.00028767,60]
[398820600,1765916001793,-432.426767,0.00030137,120]
[398820601,1765916001827,-1000.0,0.00030321,30]
[398820602,1765916001860,-1000.0,0.00030321,30]
[398820603,1765916001891,-1000.0,0.00030321,30]
[398820604,1765916001922,-212.0,0.00030384,39]
[398820605,1765916001957,-10000.0,0.000324,120]
[398820606,1765916001988,-475.0,0.00032526,120]
[398820607,1765916002020,-475.0,0.00032526,120]
[398820608,1765916002053,-163.0,0.00032575,54]
[398820609,1765916002086,-999.0,0.00032876,120]
[398820610,1765916002118,-21077.77263896,0.00033,120]
[398820611,1765916002149,-198.08824625,0.00033,120]
[398820612,1765916002180,-1155.0,0.0003315,30]
[398820613,1765916002218,-999.0,0.00033561,120]
[398820614,1765916002251,-1155.0,0.00033972,31]
[398820615,1765916002285,-999.0,0.00034246,120]
[398820616,1765916002318,-200.0,0.0003443,38]
[398820617,1765916002348,-921.79032009,0.00034452,120]
[398820618,1765916002379,-174.0,0.00034767,72]
[398820619,1765916002409,-1155.0,0.00034794,32]
[398820620,1765916002440,-442.21252626,0.00034849,120]
[398820621,1765916002472,-999.0,0.00034931,120]
[398820622,1765916002503,-17556.7866179,0.00035,120]
[398820623,1765916002532,-6898.975068,0.00035,120]
[398820624,1765916002562,-198.08824625,0.00035,120]
[398820625,1765916002592,-432.426767,0.0003516,120]
[398820626,1765916002622,-1155.0,0.00035616,33]
[398820627,1765916002654,-999.0,0.00035616,120]
[398820628,1765916002690,-999.0,0.00036301,120]
[398820629,1765916002722,-1155.0,0.00036438,34]
[398820630,1765916002753,-974.29736364,0.00036452,120]
[398820631,1765916002784,-1552.29247827,0.00036601,30]
[398820632,1765916002814,-150.0,0.000367,30]
[398820633,1765916002844,-1498.0,0.00036722,45]
[398820634,1765916002874,-200.0,0.0003677,45]
[398820635,1765916002904,-475.0,0.00036797,120]
[398820636,1765916002934,-475.0,0.00036811,120]
[398820637,1765916002968,-999.0,0.00036986,120]
[398820638,1765916002999,-397.1500583,0.00037201,30]
[398820639,1765916003031,-1155.0,0.0003726,35]
[398820640,1765916004130,-999.0,0.00037671,120]
[398820641,1765916004164,-300.0,0.00038,120]
[398820642,1765916004198,-170.0,0.00038055,107]
[398820643,1765916004236,-1155.0,0.00038082,36]
[398820644,1765916004266,-302.3631354,0.00038296,30]
[398820645,1765916004299,-999.0,0.00038356,120]
[398820646,1765916004329,-1026.80440719,0.00038452,120]
[398820647,1765916004359,-174.61919142,0.00038637,52]
[398820648,1765916004387,-250.0,0.00038637,52]
[398820649,1765916004417,-478.75725327,0.00038637,52]
[398820650,1765916004448,-250.0,0.00038637,52]
[398820651,1765916004477,-2312.83697232,0.00038637,52]
[398820652,1765916004505,-250.0,0.00038637,52]
[398820653,1765916004533,-151.0,0.00038637,52]
[398820654,1765916004561,-168.3888056,0.00038903,37]
[398820655,1765916004589,-250.0,0.00038903,37]
[398820656,1765916004619,-461.67526834,0.00038903,37]
[398820657,1765916004650,-2230.315306,0.00038903,37]
[398820658,1765916004682,-250.0,0.00038903,37]
[398820659,1765916004713,-206.00861756,0.00038903,37]
[398820660,1765916004742,-250.0,0.00038903,37]
[398820661,1765916004771,-151.0,0.00038903,37]
[398820662,1765916004802,-1155.0,0.00038904,37]
[398820663,1765916004830,-17724.49510704,0.00039,120]
[398820664,1765916004858,-500.0,0.00039,30]
[398820665,1765916004888,-999.0,0.00039041,120]
[398820666,1765916004919,-162.380719,0.00039109,51]
[398820667,1765916004958,-643.42220591,0.00039109,51]
[398820668,1765916004991,-250.0,0.00039109,51]
[398820669,1765916005024,-445.202766,0.00039109,51]
[398820670,1765916005058,-2150.738,0.00039109,51]
[398820671,1765916005091,-250.0,0.00039109,51]
[398820672,1765916005123,-250.0,0.00039109,51]
[398820673,1765916005153,-162.380719,0.00039109,51]
[398820674,1765916005184,-251.20459027,0.00039109,51]
[398820675,1765916005214,-151.0,0.00039109,51]
[398820676,1765916005244,-320.0,0.0003911,51]
[398820677,1765916005276,-302.3631354,0.00039118,30]
[398820678,1765916005307,-500.0,0.000392,30]
[398820679,1765916005338,-300.0,0.00039402,120]
[398820680,1765916005371,-156.587,0.00039725,38]
[398820681,1765916005407,-246.97190494,0.00039725,38]
[398820682,1765916005446,-500.0,0.00039725,38]
[398820683,1765916005478,-250.0,0.00039725,38]
[398820684,1765916005507,-429.318,0.00039725,38]
[398820685,1765916005538,-2074.0,0.00039725,38]
[398820686,1765916005570,-250.0,0.00039725,38]
[398820687,1765916005604,-250.0,0.00039725,38]
[398820688,1765916005638,-156.587,0.00039725,38]
[398820689,1765916005673,-250.0,0.00039725,38]
[398820690,1765916005709,-151.0,0.00039725,38]
[398820691,1765916005744,-1155.0,0.00039726,38]
[398820692,1765916005780,-999.0,0.00039726,120]
[398820693,1765916005813,-151.0,0.00039999,30]
[398820694,1765916005846,-2952.58585346,0.00039999,30]
[398820695,1765916005877,-500.0,0.00039999,30]
[398820696,1765916005908,-151.0,0.00039999,30]
[398820697,1765916005942,-822.67160438,0.00039999,30]
[398820698,1765916005977,-250.0,0.00039999,30]
[398820699,1765916006011,-414.0,0.00039999,30]
[398820700,1765916006042,-2000.0,0.00039999,30]
[398820701,1765916006329,-250.0,0.00039999,30]
[398820702,1765916006366,-250.0,0.00039999,30]
[398820703,1765916006400,-151.0,0.00039999,30]
[398820704,1765916006437,-250.0,0.00039999,30]
[398820705,1765916006469,-151.0,0.00039999,30]
[398820706,1765916006500,-2002.0,0.00039999,30]
[398820707,1765916006535,-2002.0,0.00039999,30]
[398820708,1765916006566,-160.45267954,0.00039999,30]
[398820709,1765916006599,-2002.0,0.00039999,30]
[398820710,1765916006631,-2002.0,0.00039999,30]
[398820711,1765916006664,-3596.74167734,0.00039999,30]
[398820712,1765916006697,-2002.0,0.00039999,30]
[398820713,1765916006729,-2002.0,0.00039999,30]
[398820714,1765916006761,-2002.0,0.00039999,30]
[398820715,1765916006792,-2002.0,0.00039999,30]
[398820716,1765916006823,-2002.0,0.00039999,30]
[398820717,1765916006853,-2002.0,0.00039999,30]
[398820718,1765916006884,-2002.0,0.00039999,30]
[398820719,1765916006915,-2002.0,0.00039999,30]
[398820720,1765916006947,-2002.0,0.00039999,30]
[398820721,1765916006988,-2002.0,0.00039999,30]
[398820722,1765916007028,-2002.0,0.00039999,30]
[398820723,1765916007062,-2002.0,0.00039999,30]
[398820724,1765916007093,-177.18471813,0.00039999,30]
[398820725,1765916007124,-668.0,0.0004,30]
[398820726,1765916007157,-1148.0,0.0004,30]
[398820727,1765916007188,-1143799.52130139,0.0004,120]
[398820728,1765916007219,-200.0,0.0004,120]
[398820729,1765916007253,-2085.395,0.0004,120]
[398820730,1765916007284,-400.0,0.0004,120]
[398820731,1765916007315,-198.08824625,0.0004,30]
[398820732,1765916007347,-3772.69178245,0.0004,120]
[398820733,1765916007394,-1016.0,0.0004,30]
[398820734,1765916007438,-198.08824625,0.0004,120]
[398820735,1765916007481,-415.38,0.00040013,120]
[398820736,1765916007523,-415.38,0.00040113,120]
[398820737,1765916007566,-432.426767,0.00040183,120]
[398820738,1765916007608,-415.38,0.00040213,120]
[398820739,1765916007650,-200.0,0.00040243,120]
[398820740,1765916007695,-415.38,0.00040313,120]
[398820741,1765916007741,-999.0,0.0004041,120]
[398820742,1765916007789,-415.38,0.00040413,120]
[398820743,1765916007832,-1079.31145074,0.00040452,120]
[398820744,1765916007878,-415.38,0.00040513,120]
[398820745,1765916007921,-1155.0,0.00040547,39]
[398820746,1765916007963,-162.0,0.000406,120]
[398820747,1765916008007,-415.38,0.00040613,120]
[398820748,1765916008055,-253.0,0.00040682,120]
[398820749,1765916008100,-169.0,0.00040682,120]
[398820750,1765916008145,-170.0,0.00040682,120]
[398820751,1765916008192,-415.38,0.00040713,120]
[398820752,1765916008238,-175.16809593,0.00040803,120]
[398820753,1765916008286,-415.38,0.00040813,120]
[398820754,1765916008334,-306.0,0.0004082,30]
[398820755,1765916008381,-415.38,0.00040913,120]
[398820756,1765916008425,-302.3631354,0.00040945,30]
[398820757,1765916008468,-1239.67652362,0.00041,120]
[398820758,1765916008510,-680.4810247,0.00041,120]
[398820759,1765916008553,-500.0,0.00041,120]
[398820760,1765916008597,-1196.31,0.00041,120]
[398820761,1765916008643,-506.0,0.00041,120]
[398820762,1765916008688,-1805.09,0.00041,30]
[398820763,1765916008735,-1983.91,0.00041,30]
[398820764,1765916008781,-1016.0,0.00041,30]
[398820765,1765916008838,-415.38,0.00041013,120]
[398820766,1765916008881,-959.9,0.00041095,30]
[398820767,1765916008931,-999.0,0.00041095,120]
[398820768,1765916008974,-1591.34,0.00041096,120]
[398820769,1765916009016,-301.9,0.00041096,120]
[398820770,1765916009064,-424.838694,0.00041096,120]
[398820771,1765916009112,-424.838694,0.00041096,120]
[398820772,1765916009158,-424.838694,0.00041096,120]
[398820773,1765916009203,-424.838694,0.00041096,120]
[398820774,1765916009248,-424.838694,0.00041096,120]
[398820775,1765916009293,-424.838694,0.00041096,120]
[398820776,1765916009336,-424.838694,0.00041096,120]
[398820777,1765916009378,-424.838694,0.00041096,120]
[398820778,1765916009422,-424.838694,0.00041096,120]
[398820779,1765916009466,-424.838694,0.00041096,120]
[398820780,1765916009508,-424.838694,0.00041096,120]
[398820781,1765916009550,-424.838694,0.00041096,120]
[398820782,1765916009592,-424.838694,0.00041096,120]
[398820783,1765916009634,-424.838694,0.00041096,120]
[398820784,1765916009677,-424.838694,0.00041096,120]
[398820785,1765916009719,-424.838694,0.00041096,120]
[398820786,1765916009761,-424.838694,0.00041096,120]
[398820787,1765916009802,-424.838694,0.00041096,120]
[398820788,1765916009846,-424.838694,0.00041096,120]
[398820789,1765916009890,-424.838688,0.00041096,120]
[398820790,1765916009934,-415.38,0.00041113,120]
[398820791,1765916009974,-162.0,0.000412,120]
[398820792,1765916010018,-198.08824625,0.000412,30]
[398820793,1765916010070,-415.38,0.00041213,120]
[398820794,1765916010113,-415.38,0.00041313,120]
[398820795,1765916010156,-1155.0,0.00041369,40]
[398820796,1765916010385,-300.0,0.000414,120]
[398820797,1765916010432,-415.38,0.00041413,120]
[398820798,1765916010476,-1521.90970324,0.000415,120]
[398820799,1765916010516,-549.27390126,0.000415,120]
[398820800,1765916010557,-445.23185962,0.000415,120]
[398820801,1765916010598,-1334.47590014,0.000415,120]
[398820802,1765916010641,-176.25761746,0.000415,120]
[398820803,1765916010684,-1270.51521624,0.000415,120]
[398820804,1765916010727,-177.57610622,0.000415,120]
[398820805,1765916010771,-1949.41726641,0.000415,120]
[398820806,1765916010813,-1907.09118073,0.000415,120]
[398820807,1765916010855,-583.47525152,0.000415,120]
[398820808,1765916010895,-1085.79727242,0.000415,120]
[398820809,1765916010937,-167.50998477,0.000415,120]
[398820810,1765916010983,-305.92604588,0.000415,120]
[398820811,1765916011029,-213.52600178,0.000415,120]
[398820812,1765916011075,-415.38,0.00041513,120]
[398820813,1765916011122,-415.38,0.00041613,120]
[398820814,1765916011168,-959.9,0.00041643,35]
[398820815,1765916011213,-1100.0,0.00041644,60]
[398820816,1765916011259,-415.38,0.00041713,120]
[398820817,1765916011305,-999.0,0.0004178,120]
[398820818,1765916011351,-162.0,0.000418,120]
[398820819,1765916011393,-415.38,0.00041813,120]
[398820820,1765916011435,-1040.10247,0.000419,120]
[398820821,1765916011476,-200.0,0.000419,120]
[398820822,1765916011518,-415.38,0.00041913,120]
[398820823,1765916011560,-1000.0,0.00042,120]
[398820824,1765916011602,-300.0,0.00042,120]
[398820825,1765916011644,-1016.0,0.00042,30]
[398820826,1765916011687,-415.38,0.00042013,120]
[398820827,1765916011730,-415.38,0.00042113,120]
[398820828,1765916011772,-1155.0,0.00042191,41]
[398820829,1765916011811,-959.9,0.00042191,40]
[398820830,1765916011855,-1100.0,0.00042192,60]
[398820831,1765916011896,-415.38,0.00042213,120]
[398820832,1765916011937,-415.38,0.00042313,120]
[398820833,1765916011978,-162.0,0.000424,120]
[398820834,1765916012019,-1804.88644174,0.000424,120]
[398820835,1765916012064,-198.08824625,0.000424,30]
[398820836,1765916012109,-415.38,0.00042413,120]
[398820837,1765916012154,-1131.81849428,0.00042452,120]
[398820838,1765916012198,-999.0,0.00042465,120]
[398820839,1765916012240,-1699.10363622,0.000425,120]
[398820840,1765916012285,-415.38,0.00042513,120]
[398820841,1765916012328,-415.38,0.00042613,120]
[398820842,1765916012368,-1521.90970324,0.000427,120]
[398820843,1765916012410,-549.27390126,0.000427,120]
[398820844,1765916012453,-445.23185962,0.000427,120]
[398820845,1765916012494,-1334.47590014,0.000427,120]
[398820846,1765916012534,-176.25761746,0.000427,120]
[398820847,1765916012574,-1270.51521624,0.000427,120]
[398820848,1765916012613,-177.57610622,0.000427,120]
[398820849,1765916012657,-1949.41726641,0.000427,120]
[398820850,1765916012699,-1907.09118073,0.000427,120]
[398820851,1765916012739,-583.47525152,0.000427,120]
[398820852,1765916012779,-1085.79727242,0.000427,120]
[398820853,1765916012819,-167.50998477,0.000427,120]
[398820854,1765916012857,-305.92604588,0.000427,120]
[398820855,1765916012899,-415.38,0.00042713,120]
[398820856,1765916012938,-253.0,0.00042716,120]
[398820857,1765916012978,-169.0,0.00042716,120]
[398820858,1765916013018,-170.0,0.00042716,120]
[398820859,1765916013063,-959.9,0.00042739,45]
[398820860,1765916013109,-415.38,0.00042813,120]
[398820861,1765916013159,-415.38,0.00042913,120]
[398820862,1765916013203,-826.63947035,0.00042999,120]
[398820863,1765916013247,-162.0,0.00043,120]
[398820864,1765916013288,-288.32540707,0.00043,120]
[398820865,1765916013330,-506.78,0.00043,120]
[398820866,1765916013372,-1000.0,0.00043,120]
[398820867,1765916013414,-272.0,0.00043,120]
[398820868,1765916013456,-260.2,0.00043,120]
[398820869,1765916013499,-6935.0,0.00043,120]
[398820870,1765916013542,-1016.0,0.00043,30]
[398820871,1765916013584,-1155.0,0.00043013,42]
[398820872,1765916013625,-415.38,0.00043013,120]
[398820873,1765916013668,-200.0,0.00043047,120]
[398820874,1765916013711,-415.38,0.00043113,120]
[398820875,1765916013752,-999.0,0.0004315,120]
[398820876,1765916013794,-415.38,0.00043213,120]
[398820877,1765916013835,-439953.9993,0.0004322,30]
[398820878,1765916013878,-959.9,0.00043287,50]
[398820879,1765916013920,-1100.0,0.00043288,60]
[398820880,1765916013965,-415.38,0.00043313,120]
[398820881,1765916014012,-415.38,0.00043413,120]
[398820882,1765916014057,-58616.77155069,0.000435,120]
[398820883,1765916014104,-415.38,0.00043513,120]
[398820884,1765916014148,-157.0,0.00043534,120]
[398820885,1765916014191,-162.0,0.000436,120]
[398820886,1765916014236,-415.38,0.00043613,120]
[398820887,1765916014280,-415.38,0.00043713,120]
[398820888,1765916014320,-1000.0,0.000438,90]
[398820889,1765916014359,-1000.0,0.000438,90]
[398820890,1765916014582,-1000.0,0.000438,90]
[398820891,1765916014627,-1000.0,0.000438,90]
[398820892,1765916014671,-415.38,0.00043813,120]
[398820893,1765916014713,-1155.0,0.00043835,43]
[398820894,1765916014756,-959.9,0.00043835,55]
[398820895,1765916014798,-959.07895103,0.00043835,120]
[398820896,1765916014839,-1040.10247,0.000439,120]
[398820897,1765916014879,-200.0,0.000439,120]
[398820898,1765916014924,-415.94574381,0.00043913,120]
[398820899,1765916014966,-1000.0,0.00044,120]
[398820900,1765916015014,-8000.0,0.00044,120]
[398820901,1765916015059,-1000.0,0.00044,120]
[398820902,1765916015103,-300.0,0.00044,120]
[398820903,1765916015146,-1521.90970324,0.00044,120]
[398820904,1765916015188,-549.27390126,0.00044,120]
[398820905,1765916015233,-445.23185962,0.00044,120]
[398820906,1765916015278,-1334.47590014,0.00044,120]
[398820907,1765916015320,-176.25761746,0.00044,120]
[398820908,1765916015365,-1270.51521624,0.00044,120]
[398820909,1765916015407,-177.57610622,0.00044,120]
[398820910,1765916015453,-1949.41726641,0.00044,120]
[398820911,1765916015496,-1907.09118073,0.00044,120]
[398820912,1765916015537,-583.47525152,0.00044,120]
[398820913,1765916015577,-1085.79727242,0.00044,120]
[398820914,1765916015616,-167.50998477,0.00044,120]
[398820915,1765916015655,-305.92604588,0.00044,120]
[398820916,1765916015695,-162.0,0.000443,120]
[398820917,1765916015734,-175716.38531793,0.0004435,60]
[398820918,1765916015776,-959.9,0.00044383,60]
[398820919,1765916015817,-1100.0,0.00044384,60]
[398820920,1765916015858,-1184.32553783,0.00044452,120]
[398820921,1765916015897,-179.80221756,0.00044618,31]
[398820922,1765916015935,-1155.0,0.00044657,44]
[398820923,1765916015975,-478.78418752,0.000447,60]
[398820924,1765916016016,-162.0,0.000449,120]
[398820925,1765916016059,-300.0,0.000449,120]
[398820926,1765916016102,-2142.48329003,0.000449,120]
[398820927,1765916016145,-959.9,0.00044931,65]
[398820928,1765916016191,-500.0,0.00044999,30]
[398820929,1765916016234,-500.0,0.00044999,90]
[398820930,1765916016275,-500.0,0.00044999,120]
[398820931,1765916016316,-1010.85036075,0.00045,120]
[398820932,1765916016357,-879.7251375,0.00045,30]
[398820933,1765916016398,-505.53518661,0.00045,120]
[398820934,1765916016438,-212.94999632,0.00045,90]
[398820935,1765916016478,-1136.35221205,0.00045,120]
[398820936,1765916016516,-586.76357349,0.00045,120]
[398820937,1765916016553,-1605.8719338,0.00045,120]
[398820938,1765916016590,-1756.39732648,0.00045,120]
[398820939,1765916016628,-884.44606465,0.00045,120]
[398820940,1765916016666,-201.57889602,0.00045,120]
[398820941,1765916016703,-1000.0,0.00045,120]
[398820942,1765916016743,-1102.46951226,0.00045,120]
[398820943,1765916016782,-432.426767,0.00045205,120]
[398820944,1765916016821,-1521.90970324,0.000453,120]
[398820945,1765916016859,-549.27390126,0.000453,120]
[398820946,1765916016896,-445.23185962,0.000453,120]
[398820947,1765916016933,-1334.47590014,0.000453,120]
[398820948,1765916016971,-176.25761746,0.000453,120]
[398820949,1765916017009,-1270.51521624,0.000453,120]
[398820950,1765916017047,-177.57610622,0.000453,120]
[398820951,1765916017086,-1949.41726641,0.000453,120]
[398820952,1765916017125,-1907.09118073,0.000453,120]
[398820953,1765916017163,-583.47525152,0.000453,120]
[398820954,1765916017205,-1085.79727242,0.000453,120]
[398820955,1765916017247,-167.50998477,0.000453,120]